[Event "26th Zadar Open 2019"]
[Site "Zadar"]
[Date "2019.12.17"]
[Round "1.3"]
[White "Antova, Gabriela"]
[Black "Brkic, Ante"]
[Result "0-1"]
[ECO "D38"]
[WhiteElo "2314"]
[BlackElo "2576"]
[Annotator "ChessBase"]
[PlyCount "136"]
[EventDate "2019.12.15"]
[EventType "swiss"]
[EventCountry "CRO"]
[SourceTitle "playchess.com"]
[Source "ChessBase"]
[SourceQuality "1"]
[TimeControl "40/5400+30:1800+30"]

1. d4 {[%emt 0:00:30]} d5 {[%emt 0:00:30]} 2. c4 {[%emt 0:00:00]} e6 {[%emt 0:00:00]} 3. Nf3 {[%emt 0:00:00]} Nf6 {[%emt 0:00:00]} 4. Nc3 {[%emt 0:00:00]} Bb4 {[%emt 0:01:30]} 5. Bg5 {[%emt 0:02:00]} Nbd7 {[%emt 0:01:30]} 6. cxd5 {[%emt 0:01:30]} exd5 {[%emt 0:00:30]} 7. e3 {[%emt 0:00:30]} c5 {[%emt 0:00:00]} 8. Bd3 {[%emt 0:03:30]} Qa5 {[%emt 0:00:00]} 9. Qc2 {[%emt 0:00:30]} c4 {[%emt 0:00:30]} 10. Bf5 {[%emt 0:00:30]} O-O {[%emt 0:00:30]} 11. O-O {[%emt 0:01:30]} Re8 {[%emt 0:00:30]} 12. Rfb1 {[%emt 0:05:30]} g6 {[%emt 0:05:30]} 13. Bxd7 {[%emt 0:01:30]} Nxd7 {[%emt 0:00:30]} 14. a3 {[%emt 0:00:30]} Bf8 {[%emt 0:23:30]} 15. b4 {[%emt 0:01:30]} cxb3 {[%emt 0:04:30]} 16. Rxb3 {[%emt 0:01:30]} a6 {[%emt 0:06:30]} 17. Qb2 {[%emt 0:14:30]} b6 {[%emt 0:07:30]} 18. Bf4 {[%emt 0:11:30]} Re6 {[%emt 0:09:30]} 19. a4 {[%emt 0:11:30]} Bb7 {[%emt 0:00:30]} 20. Ne2 {[%emt 0:06:30]} f6 {[%emt 0:36:29]} 21. h4 {[%emt 0:34:52]} Rc8 {[%emt 0:00:00]} 22. h5 {[%emt 0:00:37]} g5 {[%emt 0:00:05]} 23. Bg3 {[%emt 0:00:40]} Rec6 {[%emt 0:00:38]} 24. Qb1 {[%emt 0:00:00]} Rc2 {[%emt 0:00:43]} 25. Qd1 {[%emt 0:00:33]} R2c4 {[%emt 0:00:00]} 26. Rb2 {[%emt 0:00:37]} Rb4 {[%emt 0:00:08]} 27. Rba2 {[%emt 0:00:10]} b5 {[%emt 0:00:44]} 28. axb5 {[%emt 0:00:15]} Qxb5 {[%emt 0:00:08]} 29. Ra5 {[%emt 0:00:39]} Qc4 {[%emt 0:00:25]} 30. Ne1 {[%emt 0:00:39]} Qb3 {[%emt 0:00:30]} 31. Nd3 {[%emt 0:00:10]} Qxd1+ {[%emt 0:00:34]} 32. Rxd1 {[%emt 0:00:30]} Rb3 {[%emt 0:00:46]} 33. Ra2 {[%emt 0:00:30]} Kg7 {[%emt 0:00:39]} 34. f3 {[%emt 0:00:30]} Kh6 {[%emt 0:00:44]} 35. Be1 {[%emt 0:00:30]} Kxh5 {[%emt 0:00:37]} 36. g4+ {[%emt 0:00:30]} Kg6 {[%emt 0:01:12]} 37. Ng3 {[%emt 0:00:30]} Rc6 {[%emt 0:00:08]} 38. Ba5 {[%emt 0:00:40]} Nb6 {[%emt 0:00:31]} 39. Bxb6 {[%emt 0:00:01]} Rcxb6 {[%emt 0:00:35]} 40. Rc2 {[%emt 0:00:30]} Bc6 {[%emt 0:00:07]} 41. Kf2 {[%emt 0:30:07]} a5 {[%emt 0:30:27]} 42. e4 {[%emt 0:00:35]} a4 {[%emt 0:00:32]} 43. e5 {[%emt 0:00:24]} a3 {[%emt 0:00:30]} 44. Nh5 {[%emt 0:00:30]} Bb5 {[%emt 0:00:30]} 45. Nc5 {[%emt 0:00:30]} Bxc5 {[%emt 0:00:30]} 46. dxc5 {[%emt 0:00:30]} Rb8 {[%emt 0:00:30]} 47. c6 {[%emt 0:00:30]} Rb2 {[%emt 0:00:30]} 48. Rxb2 {[%emt 0:00:30]} axb2 49. c7 Rc8 50. Rb1 fxe5 51. Rxb2 Bd7 52. Rb6+ Kf7 53. Nf6 Rxc7 54. Nxh7 Rc2+ 55. Kg3 Bc6 56. Nxg5+ Kg7 57. Rb3 d4 58. Rb1 Kf6 59. Nh7+ Kg6 60. Nf8+ Kf7 61. Nh7 Rc3 62. Rf1 e4 63. Kf4 e3 64. Ng5+ Ke7 65. Re1 Rc2 66. Ke5 d3 67. Rxe3 d2 68. Kf4+ Kf8 0-1

[Event "26th Zadar Open 2019"]
[Site "Zadar"]
[Date "2019.12.15"]
[Round "1.4"]
[White "Saric, Ante"]
[Black "Ascic, Pero"]
[Result "1-0"]
[ECO "E18"]
[WhiteElo "2556"]
[BlackElo "2310"]
[Annotator "ChessBase"]
[PlyCount "61"]
[EventDate "2019.12.15"]
[EventType "swiss"]
[EventCountry "CRO"]
[SourceTitle "playchess.com"]
[Source "ChessBase"]
[SourceQuality "1"]
[TimeControl "40/5400+30:1800+30"]

1. d4 {[%emt 0:00:30]} Nf6 {[%emt 0:01:30]} 2. Nf3 {[%emt 0:00:30]} e6 {[%emt 0:01:30]} 3. c4 {[%emt 0:00:30]} d5 {[%emt 0:00:30]} 4. g3 {[%emt 0:00:30]} Be7 {[%emt 0:03:30]} 5. Bg2 {[%emt 0:00:30]} O-O {[%emt 0:00:30]} 6. O-O {[%emt 0:00:00]} b6 {[%emt 0:03:30]} 7. cxd5 {[%emt 0:01:00]} exd5 {[%emt 0:00:30]} 8. Nc3 {[%emt 0:00:00]} Bb7 {[%emt 0:08:30]} 9. Ne5 {[%emt 0:03:00]} c6 {[%emt 0:09:30]} 10. e4 {[%emt 0:06:30]} dxe4 {[%emt 0:02:30]} 11. Nxe4 {[%emt 0:00:00]} Nd5 {[%emt 0:04:30]} 12. Nc3 {[%emt 0:01:00]} Nxc3 {[%emt 0:17:30]} 13. bxc3 {[%emt 0:00:00]} Qc7 {[%emt 0:00:00]} 14. Re1 {[%emt 0:08:00]} Bd6 {[%emt 0:22:00]} 15. Nc4 {[%emt 0:03:30]} Nd7 {[%emt 0:00:30]} 16. Nxd6 {[%emt 0:00:30]} Qxd6 {[%emt 0:00:00]} 17. Bf4 {[%emt 0:00:30]} Qa3 {[%emt 0:03:15]} 18. Qb3 {[%emt 0:02:30] 5} Qa6 {[%emt 0:07:08]} 19. Re7 {[%emt 0:02:30] 0} Nf6 {[%emt 0:00:44]} 20. Bf1 {[%emt 0:01:30] ]} b5 {[%emt 0:00:05]} 21. c4 {[%emt 0:00:30] 8} Qb6 {[%emt 0:08:39]} 22. c5 Qa6 23. a4 Nd5 24. Ree1 Nxf4 25. axb5 Nh3+ 26. Bxh3 Qxb5 27. Qc2 Bc8 28. Bxc8 Rfxc8 29. Reb1 a5 30. Rxb5 cxb5 31. c6 1-0

[Event "26th Zadar Open 2019"]
[Site "Zadar"]
[Date "2019.12.17"]
[Round "1.5"]
[White "Sinanovic, Muhamed"]
[Black "Martinovic, Sasa"]
[Result "1-0"]
[ECO "A09"]
[WhiteElo "2309"]
[BlackElo "2544"]
[Annotator "ChessBase"]
[PlyCount "87"]
[EventDate "2019.12.15"]
[EventType "swiss"]
[EventCountry "CRO"]
[SourceTitle "playchess.com"]
[Source "ChessBase"]
[SourceQuality "1"]
[TimeControl "40/5400+30:1800+30"]

1. g3 {[%emt 0:00:30] 0} d5 {[%emt 0:00:30] 0} 2. Bg2 {[%emt 0:00:00] 0} e5 {[%emt 0:00:00]} 3. c4 {[%emt 0:00:00]} d4 {[%emt 0:00:00]} 4. d3 {[%emt 0:02:30]} Nc6 {[%emt 0:02:30]} 5. Nf3 {[%emt 0:02:30]} Bb4+ {[%emt 0:00:00]} 6. Bd2 {[%emt 0:08:30]} a5 {[%emt 0:00:00]} 7. Na3 {[%emt 0:01:30]} Nf6 {[%emt 0:04:30]} 8. Nc2 {[%emt 0:01:30]} Bxd2+ {[%emt 0:06:30]} 9. Nxd2 {[%emt 0:05:30]} O-O {[%emt 0:00:30]} 10. O-O {[%emt 0:00:30]} Bg4 {[%emt 0:04:30]} 11. h3 {[%emt 0:10:30]} Bf5 {[%emt 0:02:30]} 12. a3 {[%emt 0:08:30]} Qe7 {[%emt 0:00:30]} 13. Rb1 {[%emt 0:09:30]} e4 {[%emt 0:06:30]} 14. dxe4 {[%emt 0:03:30]} Nxe4 {[%emt 0:00:30]} 15. Nxe4 {[%emt 0:00:30]} Bxe4 {[%emt 0:00:00]} 16. Bxe4 {[%emt 0:00:30]} Qxe4 {[%emt 0:00:00]} 17. Qd3 {[%emt 0:00:30]} Rfe8 {[%emt 0:09:30]} 18. Qxe4 {[%emt 0:06:30]} Rxe4 {[%emt 0:00:00]} 19. Rfd1 {[%emt 0:01:30]} Rae8 {[%emt 0:11:00]} 20. b4 {[%emt 0:35:00]} axb4 {[%emt 0:25:30]} 21. axb4 {[%emt 0:00:00]} b6 {[%emt 0:00:30]} 22. b5 {[%emt 0:00:00]} Rxe2 {[%emt 0:00:30]} 23. Nxd4 {[%emt 0:00:00]} Nxd4 {[%emt 0:00:30]} 24. Rxd4 {[%emt 0:00:00]} Rc2 {[%emt 0:00:30]} 25. h4 {[%emt 0:00:00]} g6 {[%emt 0:00:30]} 26. Kg2 {[%emt 0:00:00]} Re5 {[%emt 0:00:30]} 27. Rf4 {[%emt 0:00:00]} Rf5 {[%emt 0:00:30]} 28. Rxf5 {[%emt 0:00:00]} gxf5 {[%emt 0:00:30]} 29. Rb4 {[%emt 0:00:00]} Kg7 {[%emt 0:00:30]} 30. Kf3 {[%emt 0:00:00]} Kf6 {[%emt 0:00:30]} 31. Ra4 {[%emt 0:00:00]} Ke5 {[%emt 0:00:30]} 32. Ke3 {[%emt 0:00:00]} h5 {[%emt 0:00:30]} 33. f3 {[%emt 0:00:00]} Rc3+ {[%emt 0:00:30]} 34. Ke2 {[%emt 0:00:00]} Kd6 {[%emt 0:00:30]} 35. Kf2 {[%emt 0:00:00]} Rd3 {[%emt 0:00:30]} 36. Ra8 {[%emt 0:00:00]} Kc5 {[%emt 0:00:30]} 37. Rh8 {[%emt 0:00:00]} Kxc4 {[%emt 0:00:30]} 38. Rxh5 {[%emt 0:00:00]} Rd5 {[%emt 0:00:30]} 39. g4 {[%emt 0:00:00]} Rd2+ {[%emt 0:00:30]} 40. Ke1 {[%emt 0:00:00]} Rh2 {[%emt 0:00:30]} 41. Rxf5 {[%emt 0:11:00]} Rxh4 {[%emt 0:30:30]} 42. Rxf7 {[%emt 0:00:30]} Kxb5 {[%emt 0:00:30]} 43. Rxc7 {[%emt 0:00:30]} Rh2 {[%emt 0:00:30]} 44. Kf1 1-0

[Event "26th Zadar Open 2019"]
[Site "Zadar"]
[Date "2019.12.17"]
[Round "1.6"]
[White "Yeoh, Li Tian"]
[Black "Guttenthaler, Franz"]
[Result "1-0"]
[ECO "A07"]
[WhiteElo "2530"]
[BlackElo "2304"]
[Annotator "ChessBase"]
[PlyCount "75"]
[EventDate "2019.12.15"]
[EventType "swiss"]
[EventCountry "CRO"]
[SourceTitle "playchess.com"]
[Source "ChessBase"]
[SourceQuality "1"]
[TimeControl "40/5400+30:1800+30"]

1. Nf3 {[%emt 0:00:30]} Nf6 {[%emt 0:00:30]} 2. g3 {[%emt 0:00:00]} d5 {[%emt 0:00:30]} 3. Bg2 {[%emt 0:00:00]} Nbd7 {[%emt 0:00:30]} 4. O-O {[%emt 0:02:30]} e5 {[%emt 0:00:30]} 5. d4 {[%emt 0:02:30]} e4 {[%emt 0:01:30]} 6. Nfd2 {[%emt 0:04:30]} c6 {[%emt 0:06:30]} 7. e3 {[%emt 0:08:30]} Nb6 {[%emt 0:05:30]} 8. f3 {[%emt 0:09:30]} exf3 {[%emt 0:00:30]} 9. Qxf3 {[%emt 0:00:30]} Be7 {[%emt 0:01:30]} 10. Nc3 {[%emt 0:03:30]} O-O {[%emt 0:05:30]} 11. h3 {[%emt 0:01:30]} Be6 {[%emt 0:01:30]} 12. Ne2 {[%emt 0:00:30]} Qd7 {[%emt 0:00:30]} 13. g4 {[%emt 0:01:30]} h6 {[%emt 0:00:30]} 14. c3 {[%emt 0:06:30]} Nc8 {[%emt 0:03:30]} 15. Ng3 {[%emt 0:12:30]} Nd6 {[%emt 0:01:30]} 16. b3 {[%emt 0:00:30]} Rfe8 {[%emt 0:02:30]} 17. Bb2 {[%emt 0:03:30]} a5 {[%emt 0:01:30]} 18. a4 {[%emt 0:03:30]} Bf8 {[%emt 0:01:30]} 19. c4 {[%emt 0:04:30]} Rad8 {[%emt 0:06:30]} 20. Rae1 {[%emt 0:11:30]} Nh7 {[%emt 0:10:30]} 21. e4 Ng5 22. Qf4 Ndxe4 23. Ndxe4 Nxe4 24. Nxe4 dxe4 25. Bxe4 f6 26. Bc2 Bf7 27. Re3 Bd6 28. Qf3 Rxe3 29. Qxe3 Re8 30. Qd3 Qe7 31. Qh7+ Kf8 32. Qh8+ Bg8 33. Bc1 Kf7 34. Bd3 c5 35. g5 hxg5 36. Bxg5 cxd4 37. Qh5+ Kf8 38. Rxf6+ 1-0

[Event "26th Zadar Open 2019"]
[Site "Zadar"]
[Date "2019.12.15"]
[Round "1.7"]
[White "Sai Agni Jeevitesh, J."]
[Black "Stany, G.A."]
[Result "1/2-1/2"]
[ECO "A11"]
[WhiteElo "2301"]
[BlackElo "2526"]
[Annotator "ChessBase"]
[PlyCount "72"]
[EventDate "2019.12.15"]
[EventType "swiss"]
[EventCountry "CRO"]
[SourceTitle "playchess.com"]
[Source "ChessBase"]
[SourceQuality "1"]
[TimeControl "40/5400+30:1800+30"]

1. Nf3 {[%emt 0:00:30]} d5 {[%emt 0:01:30]} 2. c4 {[%emt 0:00:30]} e6 {[%emt 0:00:30]} 3. e3 {[%emt 0:00:30]} Nf6 {[%emt 0:01:30]} 4. Nc3 {[%emt 0:00:00]} Nbd7 {[%emt 0:02:30]} 5. b3 {[%emt 0:01:00]} c6 {[%emt 0:04:30]} 6. Bb2 {[%emt 0:00:30]} Bd6 {[%emt 0:00:30]} 7. Qc2 {[%emt 0:00:00]} Qe7 {[%emt 0:03:30]} 8. Be2 {[%emt 0:03:00]} e5 {[%emt 0:04:30]} 9. cxd5 {[%emt 0:00:30]} Nxd5 {[%emt 0:01:30]} 10. Ne4 {[%emt 0:00:30]} Ba3 {[%emt 0:14:30]} 11. O-O {[%emt 0:12:30]} Bxb2 {[%emt 0:05:30]} 12. Qxb2 {[%emt 0:00:30]} O-O {[%emt 0:00:30]} 13. Ng3 {[%emt 0:00:30]} e4 {[%emt 0:02:30]} 14. Nd4 {[%emt 0:01:30]} Re8 {[%emt 0:08:30]} 15. d3 {[%emt 0:13:30]} exd3 {[%emt 0:08:30]} 16. Bxd3 {[%emt 0:01:30]} Ne5 {[%emt 0:00:30]} 17. Be2 {[%emt 0:01:30]} a5 {[%emt 0:07:30]} 18. a3 {[%emt 0:03:30]} g6 {[%emt 0:07:30]} 19. Nf3 {[%emt 0:03:30]} h5 {[%emt 0:00:30]} 20. Nxe5 {[%emt 0:04:30]} Qxe5 {[%emt 0:00:30]} 21. Qxe5 {[%emt 0:00:30]} Rxe5 {[%emt 0:00:00]} 22. h4 {[%emt 0:00:30]} Be6 {[%emt 0:23:46]} 23. Rfd1 {[%emt 0:10:30]} Nc3 {[%emt 0:00:00]} 24. Rd3 {[%emt 0:02:30]} Rc5 {[%emt 0:00:00]} 25. Bd1 {[%emt 0:12:30]} Nxd1 {[%emt 0:00:00]} 26. Raxd1 {[%emt 0:00:30]} Rb5 {[%emt 0:00:00]} 27. Ne2 {[%emt 0:00:30]} Bxb3 {[%emt 0:00:00]} 28. Rd8+ {[%emt 0:04:30]} Rxd8 {[%emt 0:00:00]} 29. Rxd8+ {[%emt 0:00:30]} Kg7 {[%emt 0:00:00]} 30. Nd4 {[%emt 0:00:00]} Rb6 {[%emt 0:00:00]} 31. Rc8 {[%emt 0:01:00]} Bc4 {[%emt 0:00:00]} 32. Kh2 {[%emt 0:01:30]} Kf6 {[%emt 0:00:00]} 33. Kg3 {[%emt 0:00:30]} Ke7 {[%emt 0:00:00]} 34. Kf4 {[%emt 0:04:05]} Rb2 {[%emt 0:00:32]} 35. Nf3 {[%emt 0:02:02]} Be6 {[%emt 0:00:53]} 36. Ra8 {[%emt 0:00:23]} Rxf2 1/2-1/2

[Event "26th Zadar Open 2019"]
[Site "Zadar"]
[Date "2019.12.15"]
[Round "1.8"]
[White "Livaic, Leon"]
[Black "Sutkovic, Damir"]
[Result "1-0"]
[ECO "E61"]
[WhiteElo "2505"]
[BlackElo "2292"]
[Annotator "ChessBase"]
[PlyCount "83"]
[EventDate "2019.12.15"]
[EventType "swiss"]
[EventCountry "CRO"]
[SourceTitle "playchess.com"]
[Source "ChessBase"]
[SourceQuality "1"]
[TimeControl "40/5400+30:1800+30"]

1. d4 {[%emt 0:00:30]} Nf6 {[%emt 0:00:30]} 2. c4 {[%emt 0:00:00]} d6 {[%emt 0:00:30]} 3. Nc3 {[%emt 0:00:00]} Bf5 {[%emt 0:00:30]} 4. Nf3 {[%emt 0:00:30]} g6 {[%emt 0:00:00]} 5. Qb3 {[%emt 0:02:30]} b6 {[%emt 0:00:00]} 6. g3 {[%emt 0:02:30]} Nc6 {[%emt 0:00:30]} 7. d5 {[%emt 0:02:30]} Na5 {[%emt 0:00:30]} 8. Qd1 {[%emt 0:00:30]} Bg7 {[%emt 0:03:30]} 9. Nd4 {[%emt 0:01:30]} Bd7 {[%emt 0:00:30]} 10. e4 {[%emt 0:07:30]} O-O {[%emt 0:08:30]} 11. Be2 {[%emt 0:10:30]} c5 {[%emt 0:03:30]} 12. Nb3 {[%emt 0:02:30]} Nxb3 {[%emt 0:06:30]} 13. axb3 {[%emt 0:00:30]} a6 {[%emt 0:04:30]} 14. O-O {[%emt 0:01:30]} b5 {[%emt 0:00:30]} 15. Qc2 {[%emt 0:04:30]} b4 {[%emt 0:05:30]} 16. Nd1 {[%emt 0:02:30]} e6 {[%emt 0:01:30]} 17. dxe6 {[%emt 0:04:30]} Bxe6 {[%emt 0:04:30]} 18. Ne3 {[%emt 0:06:30]} Re8 {[%emt 0:07:30]} 19. Rd1 {[%emt 0:04:30]} Qb6 {[%emt 0:05:30]} 20. Bf3 {[%emt 0:04:30]} Rad8 {[%emt 0:04:30]} 21. Bg2 {[%emt 0:00:30]} Bc8 {[%emt 0:01:30]} 22. Kh1 {[%emt 0:05:30]} Bb7 {[%emt 0:05:30]} 23. f3 {[%emt 0:35:01]} Qc7 {[%emt 0:14:30]} 24. Bd2 {[%emt 0:00:00]} Qb8 {[%emt 0:00:30]} 25. Re1 {[%emt 0:00:00]} Re7 {[%emt 0:01:30]} 26. Rad1 {[%emt 0:00:00]} Rde8 {[%emt 0:00:30]} 27. Bc1 {[%emt 0:00:00]} Nd7 {[%emt 0:05:29]} 28. Re2 {[%emt 0:00:00]} Ne5 {[%emt 0:02:12]} 29. Nd5 {[%emt 0:00:00]} Bxd5 {[%emt 0:01:21]} 30. cxd5 {[%emt 0:00:00]} c4 {[%emt 0:04:23]} 31. f4 {[%emt 0:00:00]} cxb3 {[%emt 0:00:19]} 32. Qxb3 {[%emt 0:00:00]} Nd7 {[%emt 0:00:13]} 33. Be3 {[%emt 0:00:00]} Rc8 {[%emt 0:01:27]} 34. Rc2 {[%emt 0:00:00]} Rxc2 {[%emt 0:00:55]} 35. Qxc2 {[%emt 0:00:00]} b3 {[%emt 0:00:41]} 36. Qc4 {[%emt 0:00:00]} Re8 {[%emt 0:04:10]} 37. Rd3 {[%emt 0:00:00]} Rc8 {[%emt 0:00:32]} 38. Qxb3 {[%emt 0:00:00]} Bxb2 {[%emt 0:00:46]} 39. Bh3 {[%emt 0:00:00]} Qxb3 {[%emt 0:01:30]} 40. Rxb3 {[%emt 0:00:00]} Rb8 {[%emt 0:00:07]} 41. Rxb8+ {[%emt 0:26:48]} Nxb8 {[%emt 0:30:06]} 42. Ba7 1-0

[Event "26th Zadar Open 2019"]
[Site "Zadar"]
[Date "2019.12.15"]
[Round "1.10"]
[White "Rogic, Davor"]
[Black "Dimitrov, Vladimir"]
[Result "0-1"]
[ECO "B50"]
[WhiteElo "2485"]
[BlackElo "2285"]
[Annotator "ChessBase"]
[PlyCount "104"]
[EventDate "2019.12.15"]
[EventType "swiss"]
[EventCountry "CRO"]
[SourceTitle "playchess.com"]
[Source "ChessBase"]
[SourceQuality "1"]
[TimeControl "40/5400+30:1800+30"]

1. e4 {[%emt 0:00:30]} c5 {[%emt 0:00:30]} 2. Nf3 {[%emt 0:00:00]} d6 {[%emt 0:00:00]} 3. Bc4 {[%emt 0:01:00]} Nf6 {[%emt 0:00:00]} 4. d3 {[%emt 0:00:30]} Nc6 {[%emt 0:01:30]} 5. c3 {[%emt 0:00:30]} a6 {[%emt 0:00:30]} 6. Bb3 {[%emt 0:01:30]} Bg4 {[%emt 0:00:30]} 7. h3 {[%emt 0:01:30]} Bh5 {[%emt 0:00:30]} 8. Bf4 {[%emt 0:09:30]} e6 {[%emt 0:01:30]} 9. Nbd2 {[%emt 0:01:30]} Be7 {[%emt 0:00:30]} 10. Qe2 {[%emt 0:05:30]} h6 {[%emt 0:04:30]} 11. g4 {[%emt 0:12:30]} Bg6 {[%emt 0:00:30]} 12. Rg1 {[%emt 0:00:30]} d5 {[%emt 0:02:30]} 13. Ne5 {[%emt 0:23:30]} Nxe5 {[%emt 0:07:30]} 14. Bxe5 {[%emt 0:00:30]} dxe4 {[%emt 0:02:30]} 15. dxe4 {[%emt 0:01:30]} Nd7 {[%emt 0:00:30]} 16. Bg3 {[%emt 0:02:30]} b5 {[%emt 0:01:30]} 17. O-O-O {[%emt 0:04:30]} Qa5 {[%emt 0:03:30]} 18. f4 {[%emt 0:07:30]} c4 {[%emt 0:02:30]} 19. Bc2 {[%emt 0:00:30]} Qxa2 {[%emt 0:01:30]} 20. Bb1 {[%emt 0:03:30]} Qa1 {[%emt 0:01:30]} 21. f5 {[%emt 0:04:24]} Nc5 {[%emt 0:02:30] 6} 22. Nf3 {[%emt 0:00:50]} Bh7 {[%emt 0:07:30] 4} 23. Bd6 {[%emt 0:17:12]} Nd3+ {[%emt 0:36:30]} 24. Rxd3 {[%emt 0:00:00]} cxd3 {[%emt 0:00:30]} 25. Qh2 {[%emt 0:00:00]} Rc8 {[%emt 0:00:30]} 26. Nd2 {[%emt 0:00:00]} Bg5 {[%emt 0:00:30]} 27. h4 {[%emt 0:00:00]} Bf6 {[%emt 0:01:30]} 28. Bb4 {[%emt 0:00:00]} Be7 {[%emt 0:00:30]} 29. Nb3 {[%emt 0:00:00]} Qa4 {[%emt 0:00:30]} 30. Nc5 {[%emt 0:00:00]} Bxc5 {[%emt 0:00:30]} 31. Bxc5 {[%emt 0:00:00]} Rxc5 {[%emt 0:00:30]} 32. Qb8+ {[%emt 0:00:00]} Kd7 {[%emt 0:00:30]} 33. fxe6+ {[%emt 0:00:00]} fxe6 {[%emt 0:00:30]} 34. Qxh8 {[%emt 0:00:17]} Qd4 {[%emt 0:03:23]} 35. Rg3 {[%emt 0:00:04]} Bxe4 {[%emt 0:00:13]} 36. Qf8 {[%emt 0:00:17]} Bg6 {[%emt 0:05:57]} 37. Bxd3 {[%emt 0:01:08]} Bxd3 {[%emt 0:02:46]} 38. Rxd3 {[%emt 0:05:05]} Qxd3 {[%emt 0:00:09]} 39. Qxc5 {[%emt 0:00:06]} Qf1+ {[%emt 0:00:09]} 40. Kc2 {[%emt 0:00:49]} Qe2+ {[%emt 0:00:00]} 41. Kc1 {[%emt 0:02:18]} Qe1+ {[%emt 0:06:23]} 42. Kc2 {[%emt 0:00:30]} Qe4+ {[%emt 0:00:30]} 43. Kc1 {[%emt 0:00:30]} Qxg4 {[%emt 0:00:30]} 44. Qa7+ {[%emt 0:00:30]} Ke8 {[%emt 0:00:00]} 45. Qxa6 {[%emt 0:01:30]} Qc4 {[%emt 0:00:00]} 46. Qb7 {[%emt 0:04:30]} g5 {[%emt 0:03:30]} 47. hxg5 {[%emt 0:01:30]} hxg5 {[%emt 0:01:30]} 48. Qg7 {[%emt 0:01:30]} g4 {[%emt 0:00:30]} 49. Kd2 {[%emt 0:05:32]} Qf4+ {[%emt 0:00:30]} 50. Kd3 {[%emt 0:01:31]} g3 {[%emt 0:01:30]} 51. b3 {[%emt 0:01:54]} Qf3+ {[%emt 0:00:30]} 52. Kd4 {[%emt 0:00:21]} g2 {[%emt 0:01:30]} 0-1

[Event "26th Zadar Open 2019"]
[Site "Zadar"]
[Date "2019.12.17"]
[Round "1.11"]
[White "de Francesco, Klaus"]
[Black "Galperin, Platon"]
[Result "0-1"]
[ECO "A45"]
[WhiteElo "2273"]
[BlackElo "2462"]
[Annotator "ChessBase"]
[PlyCount "64"]
[EventDate "2019.12.15"]
[EventType "swiss"]
[EventCountry "CRO"]
[SourceTitle "playchess.com"]
[Source "ChessBase"]
[SourceQuality "1"]
[TimeControl "40/5400+30:1800+30"]

1. d4 {[%emt 0:00:30] 2} Nf6 {[%emt 0:00:30] 2} 2. Bf4 {[%emt 0:00:00] 2} c5 {[%emt 0:00:30]} 3. e3 {[%emt 0:01:00]} Nd5 {[%emt 0:00:30]} 4. Bg3 {[%emt 0:00:30]} Qb6 {[%emt 0:00:00]} 5. Nc3 {[%emt 0:01:30]} Nxc3 {[%emt 0:01:00]} 6. bxc3 {[%emt 0:00:30]} d6 {[%emt 0:02:30]} 7. Nf3 {[%emt 0:01:30]} g6 {[%emt 0:00:30]} 8. Be2 {[%emt 0:03:30]} Bg7 {[%emt 0:00:30]} 9. O-O {[%emt 0:00:00]} O-O {[%emt 0:00:30]} 10. e4 {[%emt 0:03:00]} Nd7 {[%emt 0:32:30]} 11. Qd3 {[%emt 0:06:30]} Qc7 {[%emt 0:01:30]} 12. Rab1 {[%emt 0:01:30]} Nf6 {[%emt 0:01:30]} 13. h3 {[%emt 0:01:30]} b6 {[%emt 0:00:30]} 14. Bh2 {[%emt 0:02:30]} Bb7 {[%emt 0:05:30]} 15. e5 {[%emt 0:02:30]} dxe5 {[%emt 0:06:30]} 16. Nxe5 {[%emt 0:06:30]} Be4 {[%emt 0:02:30]} 17. Qc4 {[%emt 0:04:30]} Bd5 {[%emt 0:03:30]} 18. Qd3 {[%emt 0:00:30]} Qb7 {[%emt 0:00:30]} 19. dxc5 {[%emt 0:01:30]} Rad8 {[%emt 0:06:30]} 20. Qb5 {[%emt 0:04:30]} Ne4 {[%emt 0:00:30]} 21. c6 {[%emt 0:01:30]} Qc8 {[%emt 0:00:00]} 22. c7 {[%emt 0:06:30]} Rd6 {[%emt 0:00:00]} 23. Nc4 {[%emt 0:01:30]} Bxc4 {[%emt 0:33:28]} 24. Bxc4 {[%emt 0:41:15]} Nxc3 {[%emt 0:00:00]} 25. Qa6 {[%emt 0:01:57]} e5 {[%emt 0:00:00]} 26. Qxa7 {[%emt 0:00:42]} Nxb1 {[%emt 0:00:00]} 27. Ba6 {[%emt 0:01:08]} Qd7 {[%emt 0:00:00]} 28. Rxb1 {[%emt 0:01:03]} Qa4 {[%emt 0:00:00]} 29. Bg3 {[%emt 0:02:28]} b5 {[%emt 0:00:25]} 30. Qc5 {[%emt 0:00:43]} Qxa6 {[%emt 0:00:30]} 31. Rxb5 {[%emt 0:00:42]} Rc6 {[%emt 0:00:30]} 32. Qxf8+ {[%emt 0:00:41]} Bxf8 0-1

[Event "26th Zadar Open 2019"]
[Site "Zadar"]
[Date "2019.12.15"]
[Round "1.13"]
[White "Stocko, Josip"]
[Black "Spalir, Jernej"]
[Result "1/2-1/2"]
[ECO "C54"]
[WhiteElo "2267"]
[BlackElo "2429"]
[Annotator "NA"]
[PlyCount "86"]
[EventDate "2019.12.15"]
[EventType "swiss"]
[EventCountry "CRO"]
[SourceTitle "playchess.com"]
[Source "ChessBase"]
[SourceQuality "1"]
[TimeControl "40/5400+30:1800+30"]

1. e4 {[%emt 0:03:30]} e5 {[%emt 0:00:30]} 2. Nf3 {[%emt 0:00:00]} Nc6 {[%emt 0:00:00]} 3. Bc4 {[%emt 0:00:00]} Bc5 {[%emt 0:00:00]} 4. c3 {[%emt 0:00:30]} Nf6 {[%emt 0:00:30]} 5. d3 {[%emt 0:00:00]} O-O {[%emt 0:00:00]} 6. O-O {[%emt 0:01:00]} d5 {[%emt 0:03:00]} 7. exd5 {[%emt 0:00:00]} Nxd5 {[%emt 0:00:00]} 8. a4 {[%emt 0:01:00]} a6 {[%emt 0:00:00]} 9. a5 {[%emt 0:04:30]} b5 {[%emt 0:05:30]} 10. axb6 {[%emt 0:04:30]} Nxb6 {[%emt 0:00:30]} 11. Bb3 {[%emt 0:01:30]} Bf5 {[%emt 0:02:30]} 12. Bc2 {[%emt 0:00:30]} a5 {[%emt 0:00:30]} 13. d4 {[%emt 0:13:30]} Bxc2 {[%emt 0:00:30]} 14. Qxc2 {[%emt 0:00:30]} Bd6 {[%emt 0:01:30]} 15. dxe5 {[%emt 0:10:30]} Nxe5 {[%emt 0:03:30]} 16. Nxe5 {[%emt 0:00:00]} Bxe5 {[%emt 0:00:00]} 17. Nd2 {[%emt 0:03:00]} Qd5 {[%emt 0:04:00]} 18. Nf3 {[%emt 0:03:30]} Bf6 {[%emt 0:00:30]} 19. Bf4 {[%emt 0:01:30]} Qc4 {[%emt 0:02:30]} 20. Bg5 {[%emt 0:19:30]} Bxg5 {[%emt 0:04:30]} 21. Nxg5 {[%emt 0:00:30]} Qh4 {[%emt 0:00:00]} 22. Nf3 {[%emt 0:01:30]} Qh5 {[%emt 0:04:00]} 23. Nd4 {[%emt 0:08:30]} Rfe8 {[%emt 0:06:30]} 24. Rfe1 {[%emt 0:01:30]} g6 {[%emt 0:01:30]} 25. Re4 {[%emt 0:08:43]} Qd5 {[%emt 0:02:30]} 26. Rae1 {[%emt 0:04:30]} Rxe4 {[%emt 0:01:30]} 27. Rxe4 {[%emt 0:01:44]} a4 {[%emt 0:00:30]} 28. Qe2 {[%emt 0:03:36]} Nc4 {[%emt 0:05:30]} 29. Re8+ {[%emt 0:02:35]} Rxe8 {[%emt 0:00:30]} 30. Qxe8+ {[%emt 0:00:39]} Kg7 {[%emt 0:00:30]} 31. Qxa4 {[%emt 0:00:36]} c5 {[%emt 0:00:30]} 32. Nf3 {[%emt 0:01:07]} Qd3 {[%emt 0:09:30]} 33. h3 {[%emt 0:00:59]} Nxb2 {[%emt 0:00:30]} 34. Qb3 {[%emt 0:00:40]} Nd1 {[%emt 0:01:30]} 35. Qxf7+ {[%emt 0:00:44]} Kxf7 {[%emt 0:00:30]} 36. Ne5+ {[%emt 0:00:03]} Ke6 {[%emt 0:00:30]} 37. Nxd3 {[%emt 0:00:03]} Kd5 {[%emt 0:00:00]} 38. Nf4+ {[%emt 0:00:38]} Ke4 {[%emt 0:01:00]} 39. Ne6 {[%emt 0:01:05]} c4 {[%emt 0:02:30]} 40. Nc5+ {[%emt 0:00:32]} Kd5 {[%emt 0:00:30]} 41. Na4 {[%emt 0:30:21]} Ke4 {[%emt 0:29:30]} 42. Nc5+ {[%emt 0:00:15]} Kd5 {[%emt 0:00:30]} 43. Na4 {[%emt 0:00:00]} Ke4 {[%emt 0:10:30]} 1/2-1/2